Cogmind - Beta 13 @@@ ROGUE MODE // 2024.07.11 @ 00:33:57 Player: celerysam Result: Destroyed by H-61 Shepherd with Heavy Assault Cannon Performance ------------- Evolutions (3) 1500 Regions Visited (5) 1000 Robots Destroyed (25) 125 Value Destroyed (674) 674 Prototype IDs (5) 100 Alien Tech Used (0) 0 Bonus (200) 200 TOTAL SCORE: 3599 Bonus ------- Pacifist 200 Cogmind --------- Core Integrity 0/700 Matter 94/300 Energy 100/100 System Corruption 2% Temperature Cool (0) Movement Hovering (50) Location -7/Factory Parts ------- > --- POWER (2) -------- (None) > --- PROPULSION (6) --- Cooled Airjet Cooled VTOL Module > --- UTILITY (3) ------ Targeting Computer Hardened Light Armor Plating > --- WEAPON (2) ------- Power Maul > --- INVENTORY (5) ---- Deuterium Engine Cryofiber Web Cooling System Arc Projector High-powered Shotgun Peak State ------------ > --- POWER ------------ Light Nuclear Core Heavy Deuterium Engine > --- PROPULSION ------- Aluminum Leg Compact Wheel Flight Unit Flight Unit Flight Unit Cooled VTOL Module > --- UTILITY ---------- Small Storage Unit Compact Battery Targeting Computer > --- WEAPON ----------- Minigun Katana > --- INVENTORY -------- Deuterium Engine Micro Nuclear Core Cryofiber Web Cooling System Arc Projector High-powered Shotgun Mini Grenade Launcher [Rating: 31] Favorites ----------- Power Light Ion Engine Engine Light Ion Engine Power Core Light Nuclear Core Propulsion Flight Unit Leg Aluminum Leg Wheel Compact Wheel Hover Unit Gravmag System Flight Unit Flight Unit Utility Targeting Computer Storage Small Storage Unit Processor Targeting Computer Protection Hardened Light Armor Plating Weapon Assault Rifle Energy Gun Heavy EM Shotgun Ballistic Gun Assault Rifle Ballistic Cannon Improved Light Cannon Launcher Mini Grenade Launcher Impact Weapon Power Maul Slashing Weapon Katana Build | -11 -10 -9 -9 -8 -7 ------- Run | Yrd Mat Mat Min Mat Fac Slots Evolved 6 | . . 2 . 2 2 Power 1 | . . . . . 1 Propulsion 4 | . . 2 . 1 1 Utility 1 | . . . . 1 . Weapon . | . . . . . . Parts Attached 53 | 6 2 9 10 7 19 Power 12 | 1 . 1 1 2 7 Engine 8 | 1 . 1 1 2 3 Core 4 | . . . . . 4 Reactor . | . . . . . . Propulsion 23 | 2 . 5 7 3 6 Treads . | . . . . . . Leg 2 | . . . . . 2 Wheel 8 | 2 . 5 . . 1 Hover 2 | . . . . . 2 Flight 11 | . . . 7 3 1 Utility 6 | 1 2 . 1 1 1 Device . | . . . . . . Storage 4 | 1 1 . 1 1 . Processor 1 | . 1 . . . . Hackware . | . . . . . . Protection 1 | . . . . . 1 Artifact . | . . . . . . Weapon 12 | 2 . 3 1 1 5 Energy Gun 4 | . . 2 . 1 1 Energy Cannon . | . . . . . . Ballistic Gun 4 | 2 . . 1 . 1 Ballistic Cannon 1 | . . 1 . . . Launcher 1 | . . . . . 1 Special Weapon . | . . . . . . Impact Weapon 1 | . . . . . 1 Slashing Weapon 1 | . . . . . 1 Piercing Weapon . | . . . . . . Special Melee Weapon . | . . . . . . Unidentified Prototypes 5 | . . 1 . . 4 Parts Lost 16 | . . 2 . 2 12 Power 2 | . . . . . 2 Propulsion 11 | . . 2 . 2 7 Utility 1 | . . . . . 1 Weapon 2 | . . . . . 2 Highest Loss Streak 10 | . . 1 . 2 10 To Critical Strikes . | . . . . . . Average Slot Usage (%) 84 | . 93 97 96 97 67 Engine 7 | . 14 11 11 9 3 Wheel 19 | . 28 41 3 . 4 Flight 15 | . . . 39 42 21 Storage 11 | . 14 11 9 18 10 Processor 9 | . 8 11 11 9 7 Energy Gun 4 | . . 7 4 1 2 Ballistic Gun 6 | . 28 7 6 7 2 Ballistic Cannon 4 | . . 6 11 9 . Slashing Weapon 1 | . . . . . 3 Naked Turns . | . . . . . . Heaviest Build 35 | 12 27 35 16 20 17 Greatest Support 64 | 26 26 64 16 20 17 Greatest Overweight (x) 2 | . 1 . . 1 2 Average Overweight (x) . | . . . . . . Largest Inventory Capacity 15 | 8 15 15 15 8 8 Average Capacity 10 | 7 10 15 10 8 7 Most Carried 15 | 7 9 15 15 8 8 Average Carried 9 | 4 8 12 9 7 6 Final Capacity 15 | 8 15 15 8 8 5 Final Carried 15 | 6 9 15 8 8 5 Class Distribution -------------------- 81% | Mutant 6% | Scavenger-Sprinter 6% | Sprinter 5% | Scavenger-Mutant Dominant Class ---------------- Mutant | -10/Materials Mutant | -9/Materials Sprinter | -9/Mines Scavenger-Sprinter | -8/Materials Mutant | -7/Factory Resources | -11 -10 -9 -9 -8 -7 ----------- Run | Yrd Mat Mat Min Mat Fac Matter Collected 642 | 233 . 231 120 . 58 Remotely . | . . . . . . Salvage Created 794 | . . 341 66 45 342 Parts 38 | . . 18 6 3 11 Haulers Intercepted . | . . . . . . Recyclers Shooed 2 | . . . . 1 1 Parts Field Recycled . | . . . . . . Retrieved Matter . | . . . . . . Parts Self-Destructed . | . . . . . . Prevented . | . . . . . . Kills | -11 -10 -9 -9 -8 -7 ------- Run | Yrd Mat Mat Min Mat Fac Combat Hostiles Destroyed 22 | . . 7 4 3 8 Melee 2 | . . . . . 2 Guns 10 | . . 6 3 1 . Cannons 4 | . . 1 1 2 . AOE 6 | . . . . . 6 Classes Destroyed 7 | . . 5 . 1 1 Worker 1 | . . . . . 1 Tunneler 1 | . . . . 1 . Recycler 1 | . . 1 . . . Swarmer 10 | . . 3 4 3 . Grunt 9 | . . 1 . . 8 Duelist 1 | . . 1 . . . Sentry 2 | . . 2 . . . Best Kill Streak 6 | . . 3 4 3 6 Combat Bots Only 6 | . . 3 4 3 6 Max Kills in Single Turn 4 | . . 1 2 1 4 Gunslinging . | . . . . . . Exploded 4 | . . . . . 4 Melee 1 | . . . . . 1 Uniques/NPCs Destroyed . | . . . . . . Combat | -11 -10 -9 -9 -8 -7 -------- Run | Yrd Mat Mat Min Mat Fac Hostile Shots Fired 307 | . 4 54 12 47 190 Missed 126 | . . 19 7 18 82 Damage Taken 2455 | . 50 402 40 371 1592 Core 927 | . 12 60 . 115 740 Absorbed by Shields 47 | . . . . . 47 Core Remaining (%) 89 | 100 95 . 85 79 . Volleys Fired 37 | . . 20 5 9 3 Largest 2 | . . 2 2 2 1 Hottest 89 | . . 89 89 62 30 Shots Fired 68 | . . 40 7 18 3 Gun 44 | . . 32 2 9 1 Cannon 22 | . . 8 5 9 . Launcher 2 | . . . . . 2 Special . | . . . . . . Kinetic 56 | . . 32 5 18 1 Thermal . | . . . . . . Explosive 2 | . . . . . 2 Electromagnetic 10 | . . 8 2 . . Robot Hit Streak 7 | . . 6 7 5 . Robot Miss Streak 5 | . . 5 3 5 . Penetration Max . | . . . . . . Secondary Targets 1 | . . 1 . . . Max Gunslinging Chain 1 | . . 1 . . . Shots Hit Robots 40 | . . 22 3 8 7 Core Hits 37 | . . 13 4 4 16 Critical Kills . | . . . . . . Critical Parts Destroyed . | . . . . . . Critical Strikes . | . . . . . . Melee Attacks 8 | . . . . . 8 Impact . | . . . . . . Slashing 8 | . . . . . 8 Piercing . | . . . . . . Sneak Attacks . | . . . . . . Combat Hostiles . | . . . . . . Follow-up Attacks . | . . . . . . Damage Inflicted 1532 | . . 432 50 162 888 Guns 393 | . . 303 32 39 19 Cannons 230 | . . 89 18 123 . Explosions 676 | . . 40 . . 636 Melee 221 | . . . . . 221 Ramming 12 | . . . . . 12 Kinetic 440 | . . 241 18 162 19 Thermal 40 | . . 40 . . . Explosive 636 | . . . . . 636 Electromagnetic 183 | . . 151 32 . . Impact . | . . . . . . Slashing 221 | . . . . . 221 Piercing . | . . . . . . Highest Corruption 2 | . . . . . 2 Average Corruption 2 | . . . . . 2 Corruption Purged . | . . . . . . Corruption Blocked . | . . . . . . Effects 2 | . . . . . 2 Energy Discharges 1 | . . . . . 1 Data Loss (minor) 1 | . . . . . 1 Overload Shots . | . . . . . . Overflow Damage 26 | . . 18 . . 8 Projectiles . | . . . . . . Explosions 26 | . . 18 . . 8 Melee . | . . . . . . Knockbacks 4 | . . 1 . 3 . Impact . | . . . . . . Kinetic 4 | . . 1 . 3 . Secondary . | . . . . . . Self-Inflicted Damage 95 | . . 26 . . 69 Shots 3 | . . 1 . . 2 Rammed 6 | . . . . . 6 Targets Rammed 6 | . . . . . 6 Kicked . | . . . . . . Crushed . | . . . . . . Highest Temperature 108 | . . 63 79 108 18 Average Temperature 35 | . . 31 38 40 10 Received Heat Transfer 1002 | . 27 114 . 198 663 Siege Activations . | . . . . . . Robots Corrupted . | . . . . . . Combat Hostiles . | . . . . . . Parts Fried . | . . . . . . Impact Corruptions . | . . . . . . Robots Melted . | . . . . . . Combat Hostiles . | . . . . . . Parts Melted . | . . . . . . Heat Transferred 50 | . . 50 . . . Parts Sabotaged . | . . . . . . Parts Stolen . | . . . . . . Parts Stripped . | . . . . . . Power Chain Reactions 2 | . . 2 . . . Alert | -11 -10 -9 -9 -8 -7 ------- Run | Yrd Mat Mat Min Mat Fac Peak Influence 279 | . 30 279 198 226 190 Initial 108 | . . 12 108 76 100 Average 114 | . 8 164 176 147 88 Maximum Alert Level 1 | . . 1 . 1 . Low Security (%) 85 | 100 100 64 100 73 100 Level 1 14 | . . 35 . 26 . Level 2 . | . . . . . . Level 3 . | . . . . . . Level 4 . | . . . . . . Level 5 . | . . . . . . High Security . | . . . . . . Max Security . | . . . . . . Squads Dispatched 6 | . . 1 . 2 3 Investigation 2 | . . . . 1 1 Extermination . | . . . . . . Reinforcement 4 | . . 1 . 1 2 Assault . | . . . . . . Garrison . | . . . . . . Intercept . | . . . . . . Searches Triggered . | . . . . . . Construction Impeded . | . . . . . . Haulers Reinforced . | . . . . . . Active Scanning Responses . | . . . . . . Cargo Convoy Interrupts . | . . . . . . Stealth | -11 -10 -9 -9 -8 -7 --------- Run | Yrd Mat Mat Min Mat Fac Distress Signals 3 | . . 1 . 1 1 Communications Jammed . | . . . . . . Distress Signals . | . . . . . . Times Spotted 54 | . 4 12 5 14 19 Peak Tracking Total 13 | . 5 4 4 10 13 Tactical Retreats 7 | . 1 . . 2 4 Traps | -11 -10 -9 -9 -8 -7 ------- Run | Yrd Mat Mat Min Mat Fac Traps Triggered 3 | . . . . 1 2 Indirectly . | . . . . . . Trap Hack Attempts . | . . . . . . Triggered . | . . . . . . Disarmed . | . . . . . . Reprogrammed . | . . . . . . Reused . | . . . . . . Traps Extracted . | . . . . . . Installed . | . . . . . . Triggered . | . . . . . . Machines | -11 -10 -9 -9 -8 -7 ---------- Run | Yrd Mat Mat Min Mat Fac Machines Disabled 1 | . . 1 . . . Max in Single Turn 1 | . . 1 . . . Machines Repaired . | . . . . . . Machines Dismantled . | . . . . . . Machines Sabotaged . | . . . . . . Overloaded Fab Kills . | . . . . . . Hacking | -11 -10 -9 -9 -8 -7 --------- Run | Yrd Mat Mat Min Mat Fac Machines Accessed 2 | . . . . . 2 Terminals 2 | . . . . . 2 Fabricators . | . . . . . . Repair Stations . | . . . . . . Recycling Units . | . . . . . . Scanalyzers . | . . . . . . Garrison Access . | . . . . . . Total Hacks 3 | . . . . . 3 Successful 2 | . . . . . 2 Failed 1 | . . . . . 1 Catastrophic 1 | . . . . . 1 Database Lockouts . | . . . . . . Manual . | . . . . . . Terminals 3 | . . . . . 3 Fabricators . | . . . . . . Repair Stations . | . . . . . . Recycling Units . | . . . . . . Scanalyzers . | . . . . . . Garrison Access . | . . . . . . Terminal Hacks 2 | . . . . . 2 Alert Level 1 | . . . . . 1 Unreport Threat 1 | . . . . . 1 Fabricator Hacks . | . . . . . . Repair Station Hacks . | . . . . . . Recycling Unit Hacks . | . . . . . . Scanalyzer . | . . . . . . Garrison Access Hacks . | . . . . . . Unauthorized Hacks . | . . . . . . Terminals . | . . . . . . Fabricators . | . . . . . . Repair Stations . | . . . . . . Recycling Units . | . . . . . . Scanalyzers . | . . . . . . Garrison Access . | . . . . . . Data Cores Recovered . | . . . . . . Used . | . . . . . . Hacking Detections 2 | . . . . . 2 Full Trace Events 1 | . . . . . 1 Feedback Events . | . . . . . . Feedback Blocked . | . . . . . . Robot Schematics Acquired . | . . . . . . Robots Built . | . . . . . . Authchips . | . . . . . . Time . | . . . . . . Total Robot Build Rating . | . . . . . . Part Schematics Acquired . | . . . . . . Parts Built . | . . . . . . Authchips . | . . . . . . Time . | . . . . . . Total Part Build Rating . | . . . . . . Parts Repaired . | . . . . . . Time . | . . . . . . Parts Recycled . | . . . . . . Recycled Matter . | . . . . . . Retrieved Matter . | . . . . . . Retrieved Components . | . . . . . . Parts Scanalyzed . | . . . . . . Part Schematics Acquired . | . . . . . . Parts Damaged . | . . . . . . Bothacking | -11 -10 -9 -9 -8 -7 ------------ Run | Yrd Mat Mat Min Mat Fac Used RIF Installer . | . . . . . . Robots Hacked . | . . . . . . Non-combat . | . . . . . . Combat . | . . . . . . Robot Hacks Applied . | . . . . . . Relay Couplers Released . | . . . . . . Fabnet Peak Effective % . | . . . . . . Robots Rewired . | . . . . . . Allies Hacked . | . . . . . . Hacks Repelled . | . . . . . . Allies | -11 -10 -9 -9 -8 -7 -------- Run | Yrd Mat Mat Min Mat Fac Total Allies . | . . . . . . Largest Group . | . . . . . . Highest-Rated Group . | . . . . . . Highest-Rated Ally . | . . . . . . Total Orders . | . . . . . . Ally Attacks . | . . . . . . Total Damage . | . . . . . . Kills . | . . . . . . Allies Corrupted . | . . . . . . Allies Melted . | . . . . . . Intel | -11 -10 -9 -9 -8 -7 ------- Run | Yrd Mat Mat Min Mat Fac Robot Analysis Total . | . . . . . . Derelict Logs Recovered . | . . . . . . Drone Launches . | . . . . . . Drone Recoveries . | . . . . . . Exploration | -11 -10 -9 -9 -8 -7 ------------- Run | Yrd Mat Mat Min Mat Fac Turns Passed 974 | 62 69 335 66 84 358 Spaces Moved 1201 | 54 62 256 105 149 575 Core 13 | 10 . . . . 3 Treads . | . . . . . . Legs 5 | . . . . . 5 Wheels 365 | 44 62 256 . . 3 Hover 149 | . . . . . 149 Flight 669 | . . . 105 149 415 Fastest Speed 28 | 50 90 93 31 28 31 Average Speed 56 | 82 95 95 31 29 44 Slowest Speed 150 | 90 105 100 31 111 150 Overloaded Moves . | . . . . . . Propulsion Burnouts . | . . . . . . Robots Hopped 4 | . . . . 2 2 Cave-ins Triggered . | . . . . . . Exploration Rate (%) 23 | 4 21 35 32 27 22 Regions Visited 5 Branch Regions 1 Pre-discovered Areas . | . . . . . . Known Exits Taken . | . . . . . . Unknown Exits Taken 5 | 1 1 1 1 1 . Scrap Searched . | . . . . . . Spaces Dug . | . . . . . . Terrain Destroyed 24 | . . 9 . . 15 Melee . | . . . . . . Projectile 1 | . . 1 . . . AOE 23 | . . 8 . . 15 Terrain Rammed . | . . . . . . Walls Destroyed . | . . . . . . Machines Disabled . | . . . . . . Actions | -11 -10 -9 -9 -8 -7 --------- Run | Yrd Mat Mat Min Mat Fac Total 1413 | 71 73 308 130 171 660 Wait 3 | . . . . . 3 Move 1189 | 53 61 255 104 145 571 Hop 3 | . . . . 1 2 Pick Up 51 | 12 6 16 4 5 8 Fast Attach 10 | . 1 . 1 1 7 Attach 22 | 6 . 3 1 3 9 Detach 3 | . . . . . 3 Swap 21 | . 1 6 8 3 3 Drop 32 | . 4 8 7 4 9 Fire 37 | . . 20 5 9 3 Melee 8 | . . . . . 8 Ram 6 | . . . . . 6 Kick . | . . . . . . Crush . | . . . . . . Escape Stasis 28 | . . . . . 28 Rewire . | . . . . . . Trap . | . . . . . . Miscellaneous . | . . . . . . Route ------- -11/Scrapyard -10/Materials -9/Materials -9/Mines -8/Materials -7/Factory (discovered 1 exit: [*Fac]) History --------- Turn | Location | Event 21 | -11/Scrapyard | Discovered new exit (range 16) 63 | -11/Scrapyard | Entered Materials 123 | -10/Materials | Discovered new exit (range 6) 132 | -10/Materials | Entered another Materials area 132 | -9/Materials | Evolved 2 slots: Propulsion x2 316 | -9/Materials | Build established: Mutant 457 | -9/Materials | Discovered new exit (range 8) 467 | -9/Materials | Entered Mines 527 | -9/Mines | Discovered new exit (range 15) 533 | -9/Mines | Entered Materials 533 | -8/Materials | Evolved 2 slots: Propulsion x1, Utility x1 614 | -8/Materials | Discovered new exit (range 11) 617 | -8/Materials | Entered Factory 617 | -7/Factory | Evolved 2 slots: Power x1, Propulsion x1 856 | -7/Factory | Core integrity fell below 50% 866 | -7/Factory | Core integrity fell below 20% 909 | -7/Factory | Lost 10 parts (2p5n1u2w) 973 | -7/Factory | Discovered new exit (range 11) 975 | -7/Factory | Destroyed by H-61 Shepherd with Heavy Assault Cannon Last Messages --------------- 00860_ R-06 Scavenger collects Particle Gun. 00861_ U-05 Engineer lays Concrete. 00863_ R-06 Scavenger collects Mni. Grenade Launcher. 00863_ Carbon-fiber Leg destroyed. 00864_ U-05 Engineer builds a Wall. 00866_ U-05 Engineer lays Concrete. 00867_ Dropped Sml. Storage Unit. 00868_ U-05 Engineer lays Concrete. 00871_ U-05 Engineer builds a Wall. 00878_ Lgt. Nuclear Core destroyed. 00886_ K-01 Serf cleans the Subcomponent Replicator. 00887_ Acquired Power Maul. 00923_ System corrupted: Component data lost. 00923_ Gravmag System destroyed. 00925_ M-28 Smith repairs L-41 Fighter. 00944_ Acquired Prototype Hover Unit. 00944_ Identified Cld. Airjet. 00948_ System corrupted: Energy discharge (-27). 00952_ Acquired Hrd. Light Armor Plating. 00973_ EXIT=FOUND Map ----- +----------------------------------------------------+ | #+## #?# #????????????????????????????? | | # """""" #?# #????????????????????????????? | | # """""" #?# #????????????????????????????? | | # """""" #?# #????????????###########?????? | | # """"?????# #???????????? #?????? | | # ????????# #??????????? #?????? | | #+##+####### ###########? #?????? | | # + #?????? | | # # #?????? | | + + ] #?????? | | # # #?????? | | # # #?????? | | ####+################# #? #?????? | | # !#???????????# #? #?????? | | # #???????????# #?? ! #?????? | | # """#???????????# #?? #?????? | | # """#???????????# #???##########?????? | | # """#???????????+ #??????????????????? | | # ""#???????????# #??????????????????? | | #### ""#???????????# #??????????????????? | | ???# #???????????# #??????????????????? | | ???# #???????????# #??????????????????? | | ???##########???????????# #??????????????????? | | ????????????????????????# #??????????????????? | | ????????????????????????# % +??????????????????? | | ????????????????????????#@ #??????????????????? | | ??????????????????????? #??????????????????? | | ????????????????????? #??????????????????? | | ??????????????????? H ?????????????????? | | ?????????????????# ???????????????? | | ?????????????????# ?????????????? | | ?????????????????# ???????????? | | ?????????????????# ??????????? | | ?????????????????#########+###########???????????? | | ?????????????????????????????????????????????????? | | ?????????????????????????????????????????????????? | | ?????????????????????????????????????????????????? | | ?????????????????????????????????????????????????? | | ?????????????????????????????????????????????????? | | ?????????????????????????????????????????????????? | | ?????????????????????????????????????????????????? | | ?????????????????????????????????????????????????? | | ?????????????????????????????????????????????????? | | ?????????????????????????????????????????????????? | | ?????????????????????????????????????????????????? | | ?????????????????????????????????????????????????? | | ?????????????????????????????????????????????????? | | ?????????????????????????????????????????????????? | | | | | +----------------------------------------------------+ Best States ------------- Heat Dissipation 34 Energy Generation 15 Energy Capacity 465 Matter Stores 300 Matter Capacity 300 Sight Range 16 Terrain Scan Density 10 Armor Coverage 150 Evasion (%) 64 Targeting Accuracy 5 Item Schematics ----------------- None Robot Schematics ------------------ None Fabricated ------------ Nothing Alien Tech Used ----------------- None Achievements -------------- None Challenges ------------ None Game ------ Seed AccelerationGammaMediator Manual? 0 Play Time 00:23:44 Cumulative 93.8 hours Start 2024.07.11 @ 00:06:36 End 2024.07.11 @ 00:33:57 Sessions 1 Manual Loads 0 Difficulty Rogue Special Mode None Game No. 136 Rogue 136 Adventurer 0 Explorer 0 Win Type - Total 0 Types 0/0/0/0/0/0/0/0/0 Lore% 42 Gallery% 55 Achievement% 35 Wizard Run 0 Options --------- Layout 0 ASCII 0 Keyboard 0 Movement Mouse Keybinds 0 Fullscreen 1 Font 24/Smallcaps Map View 76x50 Zoom Use 0% Tactical HUD 1 Map Filters NONE Filters NONE Steam 1 RUN: 67d735a3-4484-476d-844f-3d19abb0cba1